bitfinex-derivatives/quotes_SOLF0:USTF0_20250224
["timestamp","ask_amount","ask_price","bid_price","bid_amount"]
[1740359651136,6.0531,165.2,165.19,8.01]
[1740359651531,41.13824172,165.21,165.19,8.01]
[1740359653037,0.04114888,165.24,165.19,8.01]
[1740359653439,0.04114888,165.24,165.23,6.052]
[1740359654134,190.96008636,165.27,165.22,0.04646888]
[1740359654436,190.96008636,165.27,165.26,6.0509]
[1740359654833,41.13824172,165.33,165.29,6.0498]
[1740359655038,41.13824172,165.33,165.21,41.13824172]
[1740359655232,41.13824172,165.33,165.25,0.0432409]
[1740359655434,0.03852201,165.29,165.25,0.0432409]
[1740359655635,41.13824172,165.33,165.25,0.0432409]
[1740359655933,8.7,165.35,165.25,0.0432409]
[1740359656134,8.7,165.35,165.27,6.0505]
[1740359656330,6.048,165.34,165.21,41.13824172]
[1740359656536,232.09832808,165.36,165.21,41.13824172]
[1740359657031,232.09832808,165.36,165.3,6.0494]
[1740359657238,41.13824172,165.36,165.3,6.0494]
[1740359657436,0.03967078,165.35,165.31,0.04562286]
[1740359659339,6.08737078,165.35,165.31,0.04562286]
[1740359660141,6.0483,165.34,165.31,0.04562286]
[1740359660443,0.03967078,165.35,165.31,0.04562286]
[1740359661442,6.08737078,165.35,165.31,0.04562286]
[1740359661639,0.03967078,165.35,165.31,0.04562286]
[1740359661839,0.03967078,165.35,165.32,6.0487]
[1740359662142,0.03967078,165.35,165.31,0.04562286]
[1740359662643,6.0465,165.39,165.31,0.04562286]
[1740359662846,41.13824172,165.42,165.29,1.8897]
[1740359663145,6.0466,165.38,165.33,6.048]
[1740359663645,6.0462,165.39,165.33,6.048]
[1740359663847,0.04166708,165.37,165.34,6.09407812]
[1740359664034,0.04166708,165.37,165.34,0.04647812]
[1740359664434,0.04166708,165.37,165.34,6.09437812]
[1740359664638,0.04166708,165.37,165.34,0.04647812]
[1740359665640,25.32390382,165.37,165.34,0.04647812]
[1740359667442,6.0476,165.35,165.34,0.04647812]
[1740359669747,25.32390382,165.37,165.29,1.8897]
[1740359669949,25.28223674,165.33,165.2,25.28223674]
[1740359670248,25.28223674,165.33,165.21,3.801]
[1740359670445,25.28223674,165.33,165.25,6.0512]
[1740359670650,25.28223674,165.3,165.21,3.801]
[1740359670846,25.28223674,165.3,165.27,0.04213178]
[1740359671047,25.28223674,165.3,165.22,9.73]
[1740359671243,25.28223674,165.27,165.22,9.73]
[1740359671445,25.28223674,165.27,165.23,8.94]
[1740359672147,25.32856516,165.27,165.23,8.98522477]
[1740359674243,25.28223674,165.24,165.22,9.73]
[1740359675343,33.96856516,165.27,165.22,9.73]
[1740359675543,6.052,165.23,165.22,9.73]
[1740359680748,25.32856516,165.27,165.22,9.73]
[1740359682456,25.32856516,165.27,165.24,6.0515]
[1740359682854,25.32856516,165.27,165.22,9.73]
[1740359683149,25.32856516,165.27,165.23,6.052]
[1740359684454,31.37916516,165.27,165.23,6.052]
[1740359684855,31.37916516,165.27,165.22,15.7823]
[1740359685756,31.37916516,165.27,165.22,9.73]
[1740359685957,31.37916516,165.27,165.23,6.052]
[1740359686251,25.32856516,165.27,165.22,9.73]
[1740359686750,6.052,165.23,165.22,9.73]
[1740359687657,6.0515,165.25,165.22,9.73]
[1740359687854,25.32856516,165.27,165.22,9.73]
[1740359688359,0.04632842,165.27,165.22,9.73]
[1740359688959,0.04632842,165.27,165.23,6.0519]
[1740359690060,6.0513,165.25,165.22,9.73]
[1740359690960,6.0509,165.26,165.22,15.7824]
[1740359691162,25.28223674,165.24,165.22,9.73]
[1740359691458,6.052,165.23,165.22,9.73]
[1740359693565,6.0515,165.25,165.22,9.73]
[1740359693960,25.32856516,165.27,165.22,9.73]
[1740359694157,6.051,165.26,165.22,9.73]
[1740359694361,25.32856516,165.27,165.22,9.73]
[1740359696365,6.0513,165.25,165.22,9.73]
[1740359697869,25.32856516,165.27,165.22,9.73]
[1740359698067,6.051,165.26,165.22,15.7821]
[1740359698267,25.32856516,165.27,165.22,9.73]
[1740359699871,25.32856516,165.27,165.23,12.68]
[1740359701167,25.32856516,165.27,165.22,9.73]
[1740359701372,25.32856516,165.27,165.21,0.04377737]
[1740359701573,25.28223674,165.22,165.21,0.04377737]
[1740359702272,31.33463674,165.22,165.21,0.04377737]
[1740359702573,33.80223674,165.22,165.18,1.91]
[1740359702774,25.28223674,165.19,165.09,3.8104]
[1740359703167,25.28223674,165.15,165.09,3.8104]
[1740359703572,25.28223674,165.12,165.1,0.04307851]
[1740359703870,25.28223674,165.12,165.05,1.7768]
[1740359704074,25.28223674,165.08,165.04,8.3635432]
[1740359704974,25.32449768,165.08,165.04,8.40268723]
[1740359705273,25.32449768,165.08,165.04,0.03914403]
[1740359705476,0.04226094,165.08,165.07,6.0579]
[1740359705772,8.54,165.16,165.04,0.03914403]
[1740359705974,8.54,165.16,165.04,25.28223674]
[1740359706173,8.54,165.16,165.05,1.8345]
[1740359706370,33.82223674,165.16,165.11,6.0564]
[1740359706868,0.03849603,165.15,165.12,0.03832706]
[1740359707073,33.84223674,165.22,165.12,0.03832706]
[1740359707275,25.28223674,165.22,165.12,1.8872]
[1740359707665,216.2423231,165.25,165.2,6.0531]
[1740359707869,25.28223674,165.25,165.2,6.0531]
[1740359708070,25.28223674,165.25,165.12,1.8872]
[1740359708273,6.09721551,165.24,165.21,0.04464101]
[1740359708469,25.28223674,165.22,165.12,1.8872]
[1740359708669,25.28223674,165.17,165.12,1.8872]
[1740359708975,25.28223674,165.14,165.11,3.21]
[1740359709776,25.3239359,165.14,165.11,3.24904761]
[1740359710077,0.04169916,165.14,165.11,3.24904761]
[1740359710279,0.04169916,165.14,165.12,6.0557]
[1740359710574,0.04169916,165.14,165.11,3.24904761]
[1740359710769,25.28223674,165.2,165.15,6.0548]
[1740359710971,25.28223674,165.23,165.12,1.8559]
[1740359711679,25.28223674,165.2,165.12,1.8559]
[1740359711975,0.04381701,165.19,165.16,0.04549389]
[1740359712476,33.84223674,165.25,165.16,0.04549389]
[1740359712878,6.0516,165.24,165.18,6.0538]
[1740359713279,25.28223674,165.25,165.13,1.8207]
[1740359713480,0.03818893,165.23,165.19,6.09518521]
[1740359714077,0.03818893,165.23,165.19,0.04208521]
[1740359714775,255.94105053,165.41,165.19,0.04208521]
[1740359714776,216.2423231,165.31,165.24,6.0515]
[1740359714976,25.28223674,165.31,165.16,25.28223674]
[1740359715175,31.33143674,165.31,165.19,25.28223674]
[1740359715376,25.9974863,165.34,165.27,6.0504]
[1740359715782,25.9974863,165.34,165.19,25.28223674]
[1740359715981,0.04253727,165.32,165.29,0.04318447]
[1740359716280,6.0489,165.32,165.19,25.28223674]
[1740359716482,6.08735984,165.32,165.19,25.28223674]
[1740359716783,0.03994429,165.27,165.24,0.04595557]
[1740359717086,25.28223674,165.34,165.22,25.28223674]
[1740359717383,25.28223674,165.34,165.23,1.8923]
[1740359717578,25.28223674,165.34,165.23,3.6813]
[1740359718084,0.04254222,165.3,165.27,0.04099352]
[1740359718482,25.28223674,165.37,165.27,0.04099352]
[1740359718782,25.28223674,165.4,165.25,25.28223674]
[1740359718985,6.0462,165.39,165.33,6.048]
[1740359719385,25.28223674,165.4,165.25,25.28223674]
[1740359719587,0.03892831,165.38,165.34,0.04138157]
[1740359719786,25.28223674,165.4,165.34,0.04138157]
[1740359719983,0.04565473,165.38,165.34,0.04138157]
[1740359720184,0.04565473,165.38,165.34,6.08918157]
[1740359720385,25.32789147,165.38,165.34,0.04138157]
[1740359720690,25.28223674,165.35,165.23,3.6813]
[1740359720887,25.28223674,165.35,165.3,6.0494]
[1740359721084,50.56447348,165.31,165.15,33.47680776]
[1740359721286,25.28223674,165.18,165.13,100.43042329]
[1740359721588,25.28223674,165.14,165.13,22.257642]
[1740359721785,25.28223674,165.14,165.12,166.2824942]
[1740359721993,25.28223674,165.14,165.12,125.15065822]
[1740359722185,25.28223674,165.13,165.12,77.976161]
[1740359722385,25.28223674,165.13,165.1,207.85311775]
[1740359722579,25.28223674,165.13,165.04,1.8071]
[1740359722784,25.28223674,165.07,165.04,1.8071]
[1740359723089,25.28223674,165.07,165.04,5.0071]
[1740359723289,25.28223674,165.07,165.04,3.2]
[1740359723489,25.28223674,165.07,165.04,3.24568149]
[1740359723490,0.0387781,165.07,165.04,3.24568149]
[1740359724886,41.22755597,165.05,165.04,3.24568149]
[1740359725582,41.22755597,165.05,165.04,2.87118149]
[1740359725779,18.18,165.03,164.55,732.41810616]
[1740359725984,41.22755597,164.89,164.74,41.22755597]
[1740359726186,41.22755597,164.96,164.64,41.22755597]
[1740359726187,41.22755597,164.94,164.77,41.22755597]
[1740359726381,191.0,164.95,164.8,41.22755597]
[1740359726587,41.22755597,165.01,164.86,41.22755597]
[1740359726784,0.04599618,164.95,164.92,0.04114364]
[1740359727490,50.10755597,165.04,164.92,0.04114364]
[1740359727691,41.22755597,165.04,164.93,6.0629]
[1740359727887,41.22755597,165.04,164.89,41.22755597]
[1740359728190,41.22755597,165.01,164.86,41.22755597]
[1740359728492,41.22755597,165.04,164.89,41.22755597]
[1740359728692,8.257e-05,164.95,164.92,41.27419817]
[1740359728888,41.22755597,165.07,164.97,6.0614]
[1740359729192,8.94,165.09,164.97,6.0614]
[1740359729895,0.03891029,165.05,165.01,0.03847157]
[1740359732295,0.03891029,165.05,165.01,6.09837157]
[1740359732490,0.03891029,165.05,165.01,0.03847157]
[1740359732693,8.94,165.15,165.01,41.26602754]
[1740359732889,8.94,165.15,165.01,41.22755597]
[1740359733699,232.22755597,165.16,165.01,41.22755597]
[1740359733894,232.22755597,165.16,165.06,0.03922917]
[1740359733895,0.04079242,165.1,165.06,0.03922917]
[1740359734097,0.04079242,165.1,165.0,8.92]
[1740359734297,123.2387827,165.2,165.09,6.0571]
[1740359734597,123.2387827,165.2,165.02,41.22755597]
[1740359734797,41.22755597,165.2,165.05,41.22755597]
[1740359735098,41.22755597,165.2,165.06,1.9213]
[1740359735493,0.04293031,165.15,165.11,0.03947511]
[1740359736495,0.04293031,165.15,165.12,6.056]
[1740359737101,0.04293031,165.15,165.11,0.03947511]
[1740359737691,0.04293031,165.15,165.11,6.09577511]
[1740359738299,0.04293031,165.15,165.11,0.03947511]
[1740359738998,0.04293031,165.15,165.13,6.0556]
[1740359740098,41.22755597,165.2,165.14,6.0553]
[1740359740299,41.22755597,165.2,165.11,0.03947511]
[1740359740300,41.22755597,165.23,165.1,1.9019]
[1740359740500,41.22755597,165.23,165.11,41.22755597]
[1740359740701,41.22755597,165.23,165.1,1.9019]
[1740359741100,41.22755597,165.2,165.1,1.9019]
[1740359741300,41.22755597,165.17,165.15,0.04459142]
[1740359742598,41.22755597,165.17,165.1,1.9019]
[1740359743503,41.22755597,165.17,165.1,7.9587]
[1740359743703,0.04168273,165.15,165.12,0.03894481]
[1740359745200,41.22755597,165.14,165.12,0.03894481]
[1740359745406,0.04168273,165.15,165.12,0.03894481]
[1740359745813,25.3567718,165.13,165.03,1.9237]
[1740359746801,6.0553,165.14,165.07,6.0577]
[1740359747000,0.04196429,165.1,165.06,0.04285272]
[1740359747201,191.0,165.17,165.06,1.9141]
[1740359747401,25.3567718,165.2,165.08,25.3567718]
[1740359747597,31.4100718,165.2,165.13,6.0554]
[1740359748301,0.04421247,165.18,165.15,0.04443466]
[1740359750410,25.3567718,165.26,165.15,0.04443466]
[1740359750606,29.0310718,165.29,165.16,25.3567718]
[1740359750806,29.0310718,165.29,165.13,25.3567718]
[1740359751006,6.0512,165.26,165.19,6.0531]
[1740359751208,29.0310718,165.29,165.13,25.3567718]
[1740359751608,25.3567718,165.29,165.19,0.04365314]
[1740359751810,25.3567718,165.29,165.13,31.4117718]
[1740359752109,25.3567718,165.32,165.22,0.03845216]
[1740359752309,25.3567718,165.32,165.18,1.9123]
[1740359752506,25.3567718,165.29,165.25,0.04021429]
[1740359753011,31.4076718,165.26,165.25,0.04021429]
[1740359753313,25.3567718,165.23,165.13,1.9123]
[1740359753607,31.4087718,165.23,165.16,6.0546]
[1740359753812,25.3567718,165.28,165.13,1.9123]
[1740359754413,25.3567718,165.28,165.19,0.04121558]
[1740359754414,0.04143746,165.22,165.19,0.04121558]
[1740359757417,6.09383746,165.22,165.19,0.04121558]
[1740359757815,0.04143746,165.22,165.19,0.04121558]
[1740359760223,6.09383746,165.22,165.19,0.04121558]
[1740359761426,191.0,165.32,165.19,0.04121558]
[1740359761617,216.3567718,165.32,165.18,12.18]
[1740359762017,6.0495,165.3,165.18,12.18]
[1740359762623,31.4054718,165.32,165.22,0.04169521]
[1740359762926,50.90851229,165.34,165.22,25.3567718]
[1740359763221,50.90851229,165.34,165.25,0.03920221]
[1740359763931,25.3567718,165.35,165.29,6.0497]
[1740359764127,191.0,165.37,165.29,6.0497]
[1740359764323,191.0,165.37,165.3,0.03977341]
[1740359764526,34.2367718,165.38,165.3,0.03977341]
[1740359764725,6.0477,165.35,165.3,0.03977341]
[1740359765828,25.3567718,165.35,165.3,0.03977341]
[1740359766029,25.3567718,165.32,165.3,0.03977341]
[1740359766632,6.0491,165.31,165.3,0.03977341]
[1740359766931,25.3567718,165.32,165.2,1.7674]
[1740359767131,31.4069718,165.29,165.23,6.0519]
[1740359767332,6.0502,165.29,165.2,1.7674]
[1740359768035,0.04381066,165.26,165.23,0.04228458]
[1740359769337,1.8703,165.31,165.23,0.04228458]
[1740359769940,1.8703,165.31,165.28,6.0499]
[1740359770140,1.8703,165.31,165.22,25.3567718]
[1740359770434,1.8703,165.31,165.25,0.04357413]
[1740359770843,25.3567718,165.38,165.25,0.04357413]
[1740359771043,25.3567718,165.38,165.22,25.3567718]
[1740359771335,25.3567718,165.38,165.3,0.0388358]
[1740359772241,263.11782233,165.41,165.3,0.0388358]
[1740359772442,263.11782233,165.41,165.25,25.3567718]
[1740359772643,263.11782233,165.41,165.33,0.04312227]
[1740359772943,25.3567718,165.41,165.33,0.04312227]
[1740359773442,6.0465,165.38,165.33,0.04312227]
[1740359774042,25.3567718,165.41,165.33,0.04312227]
[1740359774240,6.046,165.4,165.33,0.04312227]
[1740359774436,25.3567718,165.38,165.33,0.04312227]
[1740359774640,25.3567718,165.38,165.25,25.3567718]
[1740359774641,6.0472,165.36,165.31,6.049]
[1740359774843,25.3567718,165.38,165.34,0.04360912]
[1740359775043,25.3567718,165.38,165.25,25.3567718]
[1740359775244,6.0479,165.35,165.34,0.03947222]
[1740359775444,6.0479,165.35,165.29,6.0495]
[1740359775744,6.0479,165.35,165.33,0.04032608]
[1740359776445,6.0475,165.36,165.33,0.04032608]
[1740359776643,25.3567718,165.38,165.33,0.04032608]
[1740359776944,6.0479,165.35,165.33,0.04032608]
[1740359777145,25.3567718,165.38,165.33,0.04032608]
[1740359777439,6.0496,165.3,165.19,25.3567718]
[1740359777637,25.3567718,165.32,165.22,6.052]
[1740359777944,25.3567718,165.32,165.19,25.3567718]
[1740359778145,25.3567718,165.36,165.19,25.3567718]
[1740359778343,8.82,165.43,165.16,8.82]
[1740359778344,25.3567718,165.39,165.25,25.3567718]
[1740359778541,6.0464,165.39,165.26,0.04512209]
[1740359778740,25.3567718,165.42,165.25,25.3567718]
[1740359778938,237.76105053,165.45,165.31,25.3567718]
[1740359779344,237.76105053,165.45,165.36,6.0472]
[1740359779546,237.76105053,165.45,165.31,25.3567718]
[1740359779745,6.0444,165.44,165.39,0.04432328]
[1740359780442,25.3567718,165.46,165.39,0.04432328]
[1740359780640,237.76105053,165.47,165.39,0.04432328]
[1740359780844,6.0436,165.46,165.4,6.0455]
[1740359781045,237.76105053,165.47,165.39,0.04432328]
[1740359781446,237.76105053,165.47,165.4,25.3567718]
[1740359781842,237.76105053,165.54,165.4,25.3567718]
[1740359782236,237.76105053,165.54,165.45,0.04025746]
[1740359782548,25.3567718,165.52,165.45,0.04025746]
[1740359782845,25.3567718,165.49,165.45,0.04025746]
[1740359783046,6.0429,165.48,165.45,0.04025746]
[1740359783344,237.76105053,165.54,165.45,0.04025746]
[1740359784049,237.76105053,165.58,165.45,0.04025746]
[1740359784252,6.0398,165.57,165.45,0.04025746]
[1740359784550,237.76105053,165.58,165.5,0.04087167]
[1740359785751,40.99794183,165.56,165.5,0.04087167]
[1740359786251,237.76105053,165.58,165.5,0.04087167]
[1740359786550,40.99794183,165.59,165.5,0.04087167]
[1740359786551,6.0403,165.55,165.51,10.94]
[1740359787045,6.0403,165.55,165.51,10.98217897]
[1740359787552,6.0407,165.54,165.51,10.98217897]
[1740359787750,40.99794183,165.59,165.51,10.98217897]
[1740359788353,8.86,165.58,165.51,10.98217897]
[1740359788848,40.99794183,165.54,165.51,0.04217897]
[1740359789154,40.99794183,165.54,165.51,7.897e-05]
[1740359789348,6.0437,165.46,165.38,40.99794183]
[1740359789549,40.99794183,165.5,165.38,40.99794183]
[1740359790552,0.04217897,165.46,165.42,0.04633741]
[1740359790949,6.0445,165.44,165.42,0.04633741]
[1740359791252,0.04217897,165.46,165.42,0.04633741]
[1740359795358,6.0447,165.43,165.42,0.04633741]
[1740359799159,6.0454,165.41,165.4,3.741e-05]
[1740359799854,40.99794183,165.43,165.24,40.99794183]
[1740359800057,40.99794183,165.39,165.24,40.99794183]
[1740359800257,0.03960702,165.35,165.32,0.04262393]
[1740359800457,6.0498,165.29,165.21,40.99794183]
[1740359800855,6.0498,165.29,165.24,0.04644743]
[1740359801056,0.04399948,165.27,165.24,0.04644743]
[1740359801256,6.0503,165.28,165.23,6.0519]
[1740359801558,40.99794183,165.36,165.24,0.04588288]
[1740359801559,0.04044993,165.27,165.24,0.04588288]
[1740359801956,0.04338931,165.27,165.24,0.04652926]
[1740359802155,6.0513,165.25,165.24,0.04652926]
[1740359806262,6.0513,165.25,165.24,2.926e-05]
[1740359806468,6.0531,165.2,165.19,16.45]
[1740359807969,0.04155596,165.21,165.19,16.45]
[1740359808268,0.04155596,165.21,165.19,18.2996]
[1740359809472,0.04155596,165.21,165.19,20.2247]
[1740359810568,127.0,165.4,165.19,20.2247]
[1740359810769,8.8,165.35,165.21,25.31793416]
[1740359811168,25.31793416,165.33,165.2,1.8694]
[1740359811872,0.04633505,165.28,165.25,0.04266726]
[1740359814473,0.04633505,165.28,165.25,3.77116726]
[1740359814673,0.04633505,165.28,165.25,9.82236726]
[1740359815573,0.04633505,165.28,165.26,1.7799]
[1740359815967,0.04633505,165.28,165.25,3.77116726]
[1740359816179,0.04633505,165.28,165.25,0.04266726]
[1740359816674,25.36426921,165.28,165.25,0.04266726]
[1740359817075,6.0521,165.23,165.19,16.45]
[1740359818172,25.31793416,165.25,165.19,16.45]
[1740359818373,6.0524,165.22,165.19,16.49344931]
[1740359818672,25.31793416,165.22,165.19,16.49344931]
[1740359818873,6.0531,165.2,165.19,16.49344931]
[1740359819979,6.0528,165.21,165.19,16.49344931]
[1740359820175,0.04556498,165.23,165.19,16.49344931]
[1740359821280,6.09756498,165.23,165.19,16.49344931]
[1740359821782,0.04556498,165.23,165.19,16.49344931]
[1740359822278,0.04556498,165.23,165.2,3.5944]
[1740359822478,0.04556498,165.23,165.2,5.3909]
[1740359822776,6.498e-05,165.23,165.22,6.0524]
[1740359823082,28.95183416,165.36,165.21,25.31793416]
[1740359823785,6.0488,165.32,165.21,25.31793416]
[1740359824183,0.03957573,165.28,165.25,0.0430429]
[1740359824778,6.0506,165.27,165.25,0.0430429]
[1740359824978,0.03957573,165.28,165.25,0.0430429]
[1740359826076,25.31793416,165.27,165.25,0.0430429]
[1740359826282,0.03957573,165.28,165.25,0.0430429]
[1740359827278,25.31793416,165.27,165.25,0.0430429]
[1740359827883,6.0509,165.26,165.25,0.0430429]
[1740359828284,6.0506,165.27,165.25,0.0430429]
[1740359828576,0.03957573,165.28,165.25,0.0430429]
[1740359829875,0.03957573,165.28,165.27,6.0505]
[1740359830184,0.03957573,165.28,165.25,0.0430429]
[1740359830383,6.08987573,165.28,165.25,0.0430429]
[1740359830684,0.03957573,165.28,165.25,0.0430429]
[1740359831784,0.03957573,165.28,165.26,6.0509]
[1740359832580,0.03957573,165.28,165.25,0.0430429]
[1740359832781,0.03957573,165.28,165.27,6.0505]
[1740359834576,7.573e-05,165.28,165.27,6.0505]
[1740359834779,7.573e-05,165.28,165.27,7.8771]
[1740359835183,97.9068367,165.4,165.33,6.0481]
[1740359835383,25.31793416,165.39,165.27,1.8266]
[1740359835582,6.0486,165.33,165.27,1.8266]
[1740359835787,25.31793416,165.39,165.29,6.0495]
[1740359835990,25.31793416,165.39,165.27,1.8266]
[1740359836287,0.04329334,165.35,165.31,0.04643773]
[1740359836487,0.04329334,165.35,165.27,7.8768]
[1740359836488,0.04329334,165.35,165.27,1.8266]
[1740359836788,0.04329334,165.35,165.31,0.04567888]
[1740359838391,6.09119334,165.35,165.31,0.04567888]
[1740359839986,0.04329334,165.35,165.31,0.04567888]
[1740359840788,25.31793416,165.33,165.31,0.04567888]
[1740359840992,6.0487,165.32,165.31,7.888e-05]
[1740359841192,25.31793416,165.33,165.22,1.9012]
[1740359841492,6.0512,165.26,165.22,1.9012]
[1740359841988,25.31793416,165.3,165.22,1.9012]
[1740359842187,6.0517,165.24,165.15,3.6981]
[1740359842387,6.0517,165.24,165.17,1.9217]
[1740359842589,0.03889303,165.21,165.18,0.04586384]
[1740359842788,0.03889303,165.21,165.2,6.0528]
[1740359842986,25.31793416,165.3,165.17,1.9217]
[1740359843186,0.04229137,165.21,165.17,1.9217]
[1740359843393,0.04400723,165.25,165.22,0.04468403]
[1740359845188,6.052,165.23,165.22,0.04468403]
[1740359845382,0.04400723,165.25,165.22,0.04468403]
[1740359845787,6.0516,165.24,165.22,0.04468403]
[1740359845991,0.04400723,165.25,165.22,0.04468403]
[1740359847087,0.04400723,165.25,165.22,3.70338403]
[1740359847290,6.0482,165.34,165.24,25.31793416]
[1740359847484,6.0482,165.34,165.25,1.807]
[1740359847699,5.489,165.38,165.25,1.807]
[1740359847898,6.0477,165.35,165.3,6.0494]
[1740359848196,25.31793416,165.39,165.27,25.31793416]
[1740359848492,0.0399407,165.35,165.32,6.0486]
[1740359850494,6.0877407,165.35,165.31,0.04542428]
[1740359851193,6.0485,165.33,165.31,0.04542428]
[1740359851594,0.0399407,165.35,165.31,0.04542428]
[1740359852297,6.048,165.34,165.31,0.04542428]
[1740359852996,6.0876407,165.35,165.31,0.04542428]
[1740359853499,0.0399407,165.35,165.31,0.04542428]
[1740359854797,6.0487,165.32,165.31,0.04542428]
[1740359854997,25.31793416,165.33,165.22,3.6587]
[1740359855394,6.0504,165.28,165.23,6.0519]
[1740359855699,25.31793416,165.3,165.22,3.6587]
[1740359856290,6.0508,165.27,165.24,0.04375957]
[1740359856702,0.03912388,165.28,165.24,0.04375957]
[1740359857502,6.051,165.26,165.24,0.04375957]
[1740359860199,6.0513,165.25,165.24,0.04375957]
[1740359863806,6.0508,165.27,165.24,0.04375957]
[1740359865811,0.03912388,165.28,165.24,6.09525957]
[1740359866307,0.03912388,165.28,165.27,6.0505]
[1740359866713,33.87793416,165.36,165.25,1.792]
[1740359866916,6.0477,165.35,165.25,1.792]
[1740359867211,8.56,165.36,165.25,1.792]
[1740359867515,6.0469,165.37,165.27,25.31793416]
[1740359867903,0.04327221,165.34,165.31,6.0488]
[1740359868406,0.04327221,165.34,165.3,0.04279795]
[1740359869517,0.04327221,165.34,165.31,6.049]
[1740359869914,0.04327221,165.34,165.3,0.04279795]
[1740359872415,0.04327221,165.34,165.31,6.0487]
[1740359873521,0.04327221,165.34,165.32,6.0487]
[1740359874209,6.0457,165.41,165.3,0.04279795]
[1740359874515,25.31793416,165.42,165.27,25.31793416]
[1740359874721,25.31793416,165.45,165.3,25.31793416]
[1740359874920,25.31793416,165.45,165.33,25.31793416]
[1740359875217,6.0457,165.41,165.36,6.0472]
[1740359875418,6.0457,165.41,165.37,0.03899517]
[1740359876319,6.0457,165.41,165.37,6.08589517]
[1740359876822,6.0457,165.41,165.37,0.03899517]
[1740359877621,6.0457,165.41,165.37,6.08589517]
[1740359878117,6.0465,165.38,165.37,0.03899517]
[1740359878317,6.0465,165.38,165.31,1.8861]
[1740359878520,6.0465,165.38,165.36,0.03854611]
[1740359878914,25.31793416,165.42,165.36,0.03854611]
[1740359880317,8.52,165.47,165.36,0.03854611]
[1740359880318,25.31793416,165.45,165.36,0.03854611]
[1740359880516,25.31793416,165.45,165.32,1.7879]
[1740359880517,6.0456,165.41,165.37,6.0468]
[1740359880717,6.0456,165.41,165.39,0.04628244]
[1740359881425,6.0458,165.4,165.39,0.04628244]
[1740359881622,25.31793416,165.42,165.39,0.04628244]
[1740359882024,6.0456,165.41,165.39,13.86628244]
[1740359882514,25.31793416,165.45,165.39,13.86628244]
[1740359884027,6.0458,165.4,165.39,8.244e-05]
[1740359884221,25.31793416,165.42,165.32,1.7879]
[1740359884525,25.31793416,165.38,165.29,7.8023]
[1740359884722,25.31793416,165.35,165.25,3.6363]
[1740359885327,0.03992289,165.32,165.28,0.03972363]
[1740359885526,25.35785705,165.32,165.28,0.03972363]
[1740359885721,6.0498,165.29,165.28,0.03972363]
[1740359886226,6.0494,165.31,165.28,0.03972363]
[1740359888322,0.03992289,165.32,165.28,0.03972363]
[1740359890233,6.0492,165.31,165.28,0.03972363]
[1740359890430,0.03992289,165.32,165.28,0.03972363]
[1740359891529,6.08872289,165.32,165.28,0.03972363]
[1740359892435,6.0493,165.31,165.28,0.03972363]
[1740359893825,0.03992289,165.32,165.28,0.03972363]
[1740359894033,191.0,165.4,165.28,0.03972363]
[1740359894237,191.0,165.4,165.29,25.31793416]
[1740359894533,191.0,165.4,165.3,3.6518]
[1740359894933,6.0465,165.38,165.33,6.0481]
[1740359895134,25.31793416,165.44,165.3,3.6518]
[1740359895331,0.02207562,165.37,165.36,6.0472]
[1740359895530,6.045,165.43,165.32,25.31793416]
[1740359895725,0.02207562,165.38,165.35,0.0419582]
[1740359896430,35.65613416,165.47,165.39,6.0461]
[1740359897434,6.0445,165.44,165.41,0.04021249]
[1740359901537,6.044,165.45,165.41,0.04021249]
[1740359901729,25.31793416,165.47,165.41,0.04021249]
[1740359903533,6.0437,165.46,165.42,6.045]
[1740359904835,25.31793416,165.47,165.42,6.045]
[1740359904836,31.36143416,165.47,165.42,6.045]
[1740359905134,25.31793416,165.47,165.41,0.04021249]
[1740359905336,6.044,165.45,165.41,6.08531249]
[1740359905535,25.31793416,165.47,165.41,0.04021249]
[1740359906442,6.0438,165.46,165.41,0.04021249]
[1740359907042,6.0438,165.46,165.41,6.08551249]
[1740359907942,6.044,165.45,165.41,0.04021249]
[1740359908644,6.044,165.45,165.41,6.08551249]
[1740359908845,25.31793416,165.47,165.41,6.08551249]
[1740359909041,6.0439,165.46,165.41,6.08551249]
[1740359909642,6.0429,165.48,165.44,6.0443]
[1740359910040,206.78347759,165.49,165.44,0.04214485]
[1740359910744,6.0435,165.47,165.44,0.04214485]
[1740359911043,206.78347759,165.49,165.44,0.04214485]
[1740359911544,6.0432,165.47,165.44,0.04214485]
[1740359912844,206.78347759,165.49,165.44,0.04214485]
[1740359913040,6.0429,165.48,165.44,6.08644485]